Workbook

Sheet 2024-1 방학중 계획
A1: 2024학년도 1학기 방학 중 부서별 근로장학생 배정 내역
A2: 1. 근로기간 : 2024. 6. 25.~2024. 8. 31. (주5일 [48일간], 토요일 [10일], 주6일 [58일간])
A3: 2. 근로단가
A4: 가. 국가근로[변동 가능] - 교내일반 : 9,860원, 교외일반 : 12,220원
A5: 나. 대학근로 - 일반 : 9,860원, 육체(식당) : 12,320원
A6: 3. 학생별 1일 근로시간은 각 해당부서에서 결정(학기 중 국가근로는 1인이 1일 8시간 / 주당 40시간 / 학기당 520시간을 초과할 수 없음)
A7: 4. 부서별 배정 내역
A8: 근로구분 | B8: 부서명 | D8: 1일 근로시간 | H8: 선발인원 | I8: 근로장소
D9: 국가근로 (일반/주5일) | E9: 대학근로 (일반/주5일) | F9: 대학근로 (육체근로/5일) | G9: 대학근로 (육체근로/6일)
D10: 48 | E10: 48 | F10: 48 | G10: 58
A11: 국가근로(교내일반) | B11: 교무처 | C11: 교무과 | D11: 5 | H11: 미정 | I11: 본관 303호
A12: 국가근로(교내일반) | B12: 학생성공처 | C12: 학생지원팀 | D12: 5 | H12: 미정 | I12: 본관 101호
A13: 국가근로(교내일반) | C13: 의료지원실 | D13: 3 | H13: 미정 | I13: 학생회관 103호
A14: 국가근로(교내일반) | C14: 학생상담센터 | D14: 5 | H14: 미정 | I14: 학생회관 201호
A15: 국가근로(교내일반) | C15: 학생복지팀, 갤러리 | D15: 23 | H15: 미정 | I15: 학생회관 102호 / 학생회관 지하1층
A16: 국가근로(교내일반) | C16: 취업지원팀 | D16: 5 | H16: 미정 | I16: 도서관 210호
A17: 국가근로(교내일반) | B17: 기획협력처 | C17: 기획협력과 | D17: 5 | H17: 미정 | I17: 본관 601호
A18: 국가근로(교내일반) | B18: 입학처 | C18: 입학정책팀, 입학홍보팀 | D18: 5 | H18: 미정 | I18: 본관 301호
A19: 국가근로(교내일반) | B19: 사무국 | C19: 재무,재산관리팀 | D19: 5 | H19: 미정 | I19: 본관 505호
A20: 국가근로(교내일반) | C20: 총무팀 | D20: 5 | H20: 미정 | I20: 본관 502호
A21: 국가근로(교내일반) | C21: 기록관 | D21: 2 | H21: 미정 | I21: 본관305호
A22: 국가근로(교내일반) | C22: 예비군연대 | D22: 5 | H22: 미정 | I22: 디지털관 222호
A23: 국가근로(교내일반) / 대학근로(일반) | C23: 시설안전과 | D23: 5 | E23: 4 | H23: 미정 | I23: 본관 402~403호 / 테크노관 B104호
A24: 국가근로(교내일반) | B24: 미래교육혁신본부 | C24: 교육혁신과 | D24: 5 | H24: 미정 | I24: 공동실험실습관 303호
A25: 국가근로(교내일반) | C25: 공학교육혁신센터 | D25: 5 | H25: 미정 | I25: 그린에너지관 313호
A26: 국가근로(교내일반) | C26: 교수학습혁신센터 | D26: 5 | H26: 미정 | I26: 벤처창업관 317호, 318호
A27: 국가근로(교내일반) | B27: 대학원행정실 | C27: 대학원지원팀 | D27: 5 | H27: 미정 | I27: 본관 201호
A28: 국가근로(교내일반) | C28: 산업대학원(최고경영자과정팀) | D28: 3 | H28: 미정 | I28: 글로벌관 445호
A29: 국가근로(교내일반) | B29: 종합학사행정실 | C29: 테크노관행정실 | D29: 16 | H29: 미정 | I29: 테크노관
A30: 국가근로(교내일반) | C30: 디지털관행정실 | D30: 16 | H30: 미정 | I30: 디지털관
A31: 국가근로(교내일반) | C31: 글로벌관행정실 | D31: 16 | H31: 미정 | I31: 글로벌관
A32: 국가근로(교내일반) | C32: 교육관(신평동) | D32: 3 | H32: 미정 | I32: 교육관(신평동)
A33: 국가근로(교내일반) | B33: 교육기본시설 | C33: 도서관(양호동) | D33: 49 | H33: 미정 | I33: 도서관(양호동)
A34: 국가근로(교내일반) | C34: 도서관(신평동) | D34: 9 | H34: 미정 | I34: 도서관(신평동 아름책마루도서관)
A35: 국가근로(교내일반) | C35: 정보전산원 | D35: 5 | H35: 미정 | I35: 도서관 3, 4층
A36: 국가근로(교내일반) / 대학근로(일반,육체) | B36: 지원시설 | C36: 생활관 | D36: 5 | E36: 8 | F36: 28 | G36: 7 | H36: 미정 | I36: 푸름관
A37: 국가근로(교내일반) | B37: 부속시설 | C37: 공학종합실습센터 | D37: 5 | H37: 미정 | I37: 공동실험실습관 126호
A38: 국가근로(교내일반) | C38: 공동실험실습관 | D38: 5 | H38: 미정 | I38: 그린에너지관 202, 401호
A39: 국가근로(교내일반) | C39: 과학영재교육원 | D39: 5 | H39: 미정 | I39: 테크노관 254호
A40: 국가근로(교내일반) | C40: 대외협력실 | D40: 5 | H40: 미정 | I40: 산학협력관 507호
A41: 국가근로(교내일반) | C41: 지자체-대학협력기반지역혁신사업단 | D41: 3 | H41: 미정 | I41: 글로벌관 566호
A42: 국가근로(교내일반) | C42: SW전문인재양성사업단 | D42: 3 | H42: 미정 | I42: 도서관 417호
A43: 국가근로(교내일반) | B43: 지역협력단 | C43: 평생교육원(신평동) | D43: 5 | H43: 미정 | I43: 신평동 평생교육원 102호
A44: 국가근로(교내일반) | C44: 국제교류교육원 | D44: 5 | H44: 미정 | I44: 국제교육관 E103호
A45: 국가근로(교내일반) / 대학근로(일반) | C45: 체육문화센터 | D45: 5 | E45: 4 | H45: 미정 | I45: 골프학습관 / 체육관, 헬스장
A46: 국가근로(교내일반) | B46: 교양학부 | C46: 교양학부 | D46: 6 | H46: 미정 | I46: 글로벌관 103호
A47: 국가근로(교내일반) | B47: 교수회 | C47: 교수회 | D47: 4 | H47: 미정 | I47: 글로벌관 601호
A48: 국가근로(교내일반) | B48: 학생군사교육단 | C48: 152학생군사교육단 | D48: 0 | H48: 미정 | I48: 학생군사교육단
A49: 교내 소계
D50: 48
A51: 국가근로(교외일반) | B51: 산학협력단 | C51: 산학협력단 | D51: 40 | H51: 미정 | I51: 산학협력관 302호, 305호
A52: 국가근로(교외일반) | B52: 산학협력시설 | C52: 기업협력실(기업지원팀) | D52: 6 | H52: 미정 | I52: 산학협력관 203호
A53: 국가근로(교외일반) | C53: 기업협력실(산학교육팀) | D53: 6 | H53: 미정 | I53: 산학협력관 501호
A54: 국가근로(교외일반) | C54: 그린에너지산업화지원센터 | D54: 6 | H54: 미정 | I54: 산학협력관 610호
A55: 국가근로(교외일반) | C55: 강소특구육성사업단 | D55: 6 | H55: 미정 | I55: 공동실험실습관 201호
A56: 국가근로(교외일반) | C56: 창의지식재산센터 | D56: 6 | H56: 미정 | I56: 산학협력관 206호
A57: 국가근로(교외일반) | C57: 기술창업지원실 | D57: 6 | H57: 미정 | I57: 벤처창업관 313호
A58: 국가근로(교외일반) | C58: 산학기획실 | D58: 6 | H58: 미정 | I58: 산학협력관 505호
A59: 국가근로(교외일반) | C59: 구미정책개발센터 | D59: 4 | H59: 미정 | I59: 글로벌관 128호
A60: 국가근로(교외일반) | B60: 생활협동조합 | C60: 생활협동조합 | D60: 30 | H60: 미정 | I60: 학생회관
A61: 교외 소계
A62: 총 계

Sheet 2023-1 방학중 계획 (hidden)
A1: 2023학년도 1학기 학기 중 부서별 근로장학생 배정 내역
A2: 1. 근로기간 : 2023. 3. 1.~2023. 6. 21. (주5일 [78일간], 토요일 [15일], 주6일 [93일간])
A3: 2. 근로단가
A4: 가. 국가근로[변동 가능] - 교내일반 : 9,620원, 교외일반 : 11,150원
A5: 나. 대학근로 - 일반 : 9,620원, 육체(식당) : 12,020원
A6: 3. 학생별 1일 근로시간은 각 해당부서에서 결정(학기 중 국가근로는 1인이 1일 8시간 / 주당 20시간 / 학기당 520시간을 초과할 수 없음)
A7: 4. 부서별 배정 내역
A8: 부서명 | C8: 1일 근로시간 | G8: 선발인원 | H8: 국고 (교내 80%, 교외 100%) | I8: 대응 (20%) | J8: 대학일반 | K8: 대학육체 | L8: 근로장소 | M8: 담당자 | N8: 메일주소
C9: 국가근로 (일반/주5일) | D9: 대학근로 (일반/주5일) | E9: 대학근로 (육체근로/5일) | F9: 대학근로 (육체근로/6일)
C10: 50 | D10: 50 | E10: 50 | F10: 60 | H10: 7696 | I10: 1924 | J10: 9620 | K10: 12020
A11: 교무처 | B11: 교무과 | C11: 5 | G11: 미정 | H11: =C11*$C$10*$H$10 -> 1924000 | I11: =C11*$C$10*$I$10 -> 481000 | J11: =D11*$D$10*$J$10 -> 0 | K11: =(E11*$E$10*$K$10)+($F$10*$F11*$K$10) -> 0 | L11: 본관 303호 | M11: 안미애 | N11: amaasd@kumoh.ac.kr
A12: 학생성공처 | B12: 학생지원팀 | C12: 5 | G12: 미정 | H12: 1924000 | I12: 481000 | J12: 0 | K12: =(E12*$E$10*$K$10)+($F$10*$F12*$K$10) -> 0 | L12: 본관 101호 | M12: 박현정 | N12: guswjd9684@kumoh.ac.kr
B13: 장애대학생도우미 | C13: 0 | G13: 미정 | H13: 0 | I13: 0 | J13: 0 | K13: 0 | M13: 박현정 | N13: guswjd9684@kumoh.ac.kr
B14: 의료지원실 | C14: 3 | G14: 미정 | H14: 1154400 | I14: 288600 | J14: 0 | K14: 0 | L14: 학생회관 103호 | M14: 류정희 | N14: rjh@kumoh.ac.kr
B15: 학생상담센터 | C15: 4 | G15: 미정 | H15: 1539200 | I15: 384800 | J15: 0 | K15: 0 | L15: 학생회관 201호 | M15: 최윤영 | N15: e00452@kumoh.ac.kr
B16: 학생복지팀, 갤러리 | C16: 22 | G16: 미정 | H16: 8465600 | I16: 2116400 | J16: 0 | K16: 0 | L16: 학생회관 102호, 학생회관 지하1층 | M16: 이진옥 | N16: e00430@kumoh.ac.kr
B17: 대학식당(양호동캠퍼스) | D17: 8 | E17: 34 | G17: 미정 | H17: 0 | I17: 0 | J17: 3848000 | K17: 20434000 | L17: 대학식당(양호동) | M17: 이정희 | N17: ace@kumoh.ac.kr
B18: 취업지원팀 | C18: 5 | G18: 미정 | H18: 1924000 | I18: 481000 | J18: 0 | K18: 0 | L18: 도서관 210호 | M18: 김선희 | N18: yjunehyuk@kumoh.ac.kr
A19: 기획협력처 | B19: 기획협력과 | C19: 5 | G19: 미정 | H19: 1924000 | I19: 481000 | J19: 0 | K19: 0 | L19: 본관 601호 | M19: 양미연 | N19: aldus2528@kumoh.ac.kr
A20: 입학처 | B20: 입학정책팀, 입학홍보팀 | C20: 5 | G20: 미정 | H20: 1924000 | I20: 481000 | J20: 0 | K20: 0 | L20: 본관 301호 | M20: 변경아 | N20: bka0717@kumoh.ac.kr
A21: 사무국 | B21: 재무,재산관리팀 | C21: 5 | G21: 미정 | H21: 1924000 | I21: 481000 | J21: 0 | K21: 0 | L21: 본관 505호 | M21: 김지영 | N21: jykim88228@kumoh.ac.kr
B22: 총무팀 | C22: 5 | G22: 미정 | H22: 1924000 | I22: 481000 | J22: 0 | K22: 0 | L22: 본관 502호 | M22: 김지영 | N22: jykim88228@kumoh.ac.kr
B23: 기록관 | C23: 2 | G23: 미정 | H23: 769600 | I23: 192400 | J23: 0 | K23: 0 | L23: 본관305호 | M23: 김지영 | N23: jykim88228@kumoh.ac.kr
B24: 시설안전과 | C24: 10 | G24: 미정 | H24: 3848000 | I24: 962000 | J24: 0 | K24: 0 | L24: 본관 402~403호, 테크노관 B104호 | M24: 최효신 | N24: chs9528@kumoh.ac.kr
B25: 체육관, 헬스장 | D25: 4 | G25: 미정 | H25: 0 | I25: 0 | J25: 1924000 | K25: 0 | L25: 체육관, 헬스장 | M25: 최효신(최태순) | N25: tsc777@kumoh.ac.kr
B26: 예비군연대 | C26: 4 | G26: 미정 | H26: 1539200 | I26: 384800 | J26: 0 | K26: 0 | L26: 디지털관 222호 | M26: 손희정 | N26: sonhj@kumoh.ac.kr
A27: 미래교육혁신본부 | B27: 교육혁신과 | C27: 5 | G27: 미정 | H27: 1924000 | I27: 481000 | J27: 0 | K27: 0 | L27: 공동실험실습관 303호 | M27: 박민경 | N27: shw00248@kumoh.ac.kr
B28: AI.SW교육센터 | C28: 3 | G28: 미정 | H28: 1154400 | I28: 288600 | J28: 0 | K28: 0 | L28: 벤처창업관 314호, 315호 | M28: 박정애 | N28: pja1127@kumoh.ac.kr
B29: 공학교육혁신센터 | C29: 4 | D29: 2 | G29: 미정 | H29: 1539200 | I29: 384800 | J29: 962000 | K29: 0 | L29: 그린에너지관 313호 | M29: 정혜선 | N29: kit82@kumoh.ac.kr
B30: 교수학습혁신센터 | C30: 4 | G30: 미정 | H30: 1539200 | I30: 384800 | J30: 0 | K30: 0 | L30: 벤처창업관 317호, 318호 | M30: 정현호 | N30: hhjung@kumoh.ac.kr
A31: 교수회 | B31: 교수회 | C31: 5 | G31: 미정 | H31: 1924000 | I31: 481000 | J31: 0 | K31: 0 | L31: 디지털관 B111호 | M31: 김민아 | N31: makim@kumoh.ac.kr
A32: 학사행정실 | B32: 테크노관행정실 | C32: 16 | G32: 미정 | H32: 6156800 | I32: 1539200 | J32: 0 | K32: 0 | L32: 테크노관 | M32: 박상모 | N32: park0195@kumoh.ac.kr
B33: 디지털관행정실 | C33: 16 | G33: 미정 | H33: 6156800 | I33: 1539200 | J33: 0 | K33: 0 | L33: 디지털관 | M33: 윤진아 | N33: qortjf414@kumoh.ac.kr
B34: 글로벌관행정실 | C34: 16 | G34: 미정 | H34: 6156800 | I34: 1539200 | J34: 0 | K34: 0 | L34: 글로벌관 | M34: 신명기 | N34: scent417@kumoh.ac.kr
B35: 교육관(신평동) | C35: 3 | G35: 미정 | H35: 1154400 | I35: 288600 | J35: 0 | K35: 0 | L35: 교육관(신평동) | M35: 신명기 | N35: scent417@kumoh.ac.kr
A36: 교양교직과정부 | B36: 교양교직과정부 | C36: 5 | G36: 미정 | H36: 1924000 | I36: 481000 | J36: 0 | K36: 0 | L36: 글로벌관 103호 | M36: 김혜진 | N36: hjkim@kumoh.ac.kr
A37: 대학원 | B37: 대학원지원팀 | C37: 4 | G37: 미정 | H37: 1539200 | I37: 384800 | J37: 0 | K37: 0 | L37: 본관 201호 | M37: 강선화 | N37: ksh@kumoh.ac.kr
B38: 컨설팅대학원 | C38: 3 | G38: 미정 | H38: 1154400 | I38: 288600 | J38: 0 | K38: 0 | L38: 글로벌관 458호 | M38: 류윤영 | N38: ru0304@kumoh.ac.kr
B39: 산업대학원(최고경영자과정팀) | C39: 3 | G39: 미정 | H39: 1154400 | I39: 288600 | J39: 0 | K39: 0 | L39: 글로벌관 445호 | M39: 정윤 | N39: jungyoon@kumoh.ac.kr
A40: 교육기본시설 | B40: 도서관 | C40: 52 | G40: 미정 | H40: 20009600 | I40: 5002400 | J40: 0 | K40: 0 | L40: 도서관 | M40: 박지나 | N40: parkjn@kumoh.ac.kr
B41: 정보전산원 | C41: 5 | G41: 미정 | H41: 1924000 | I41: 481000 | J41: 0 | K41: 0 | L41: 도서관 3, 4층 | M41: 장현영 | N41: hun124@kumoh.ac.kr
A42: 지원시설 | B42: 생활관 | C42: 7 | F42: 6 | G42: 미정 | H42: 2693600 | I42: 673400 | J42: 0 | K42: 4327200 | L42: 푸름관 | M42: 김용자 | N42: poten123@kumoh.ac.kr
A43: 부속시설 | B43: 공학종합실습센터 | C43: 3 | G43: 미정 | H43: 1154400 | I43: 288600 | J43: 0 | K43: 0 | L43: 공동실험실습관 126호 | M43: 권중성 | N43: cagibamito@kumoh.ac.kr
B44: AI빅데이터센터 | C44: 3 | G44: 미정 | H44: 1154400 | I44: 288600 | J44: 0 | K44: 0 | L44: 도서관 417호 | M44: 양철순 | N44: ycs@kumoh.ac.kr
B45: 평생교육원(신평동) | C45: 7 | G45: 미정 | H45: 2693600 | I45: 673400 | J45: 0 | K45: 0 | L45: 신평동 평생교육원 102호 | M45: 한지수 | N45: jsjshjs@kumoh.ac.kr
B46: 공동실험실습관 | C46: 7 | G46: 미정 | H46: 2693600 | I46: 673400 | J46: 0 | K46: 0 | L46: 그린에너지관 202, 401호 | M46: 이은진 | N46: nana2696@kumoh.ac.kr
B47: 과학영재교육원 | C47: 3 | G47: 미정 | H47: 1154400 | I47: 288600 | J47: 0 | K47: 0 | L47: 테크노관 254호 | M47: 김현정 | N47: hjmwhj@kumoh.ac.kr
B48: 국제교류교육원 | C48: 4 | G48: 미정 | H48: 1539200 | I48: 384800 | J48: 0 | K48: 0 | L48: 테크노관 458호 | M48: 권민경 | N48: mkkwon@kumoh.ac.kr
B49: 외국인유학생지원 | C49: 0 | G49: 미정 | H49: 0 | I49: 0 | J49: =D49*$D$10*$J$10 -> 0 | K49: =(E49*$E$10*$K$10)+($F$10*$F49*$K$10) -> 0
B50: 산학전략실 | C50: 4 | G50: 미정 | H50: 1539200 | I50: 384800 | J50: 0 | K50: 0 | L50: 산학협력관 507호 | M50: 원보빈 | N50: wbobeen@kumoh.ac.kr
B51: 지자체-대학협력기반지역혁신사업단 | C51: 3 | G51: 미정 | H51: 1154400 | I51: 288600 | J51: 0 | K51: 0 | L51: 글로벌관 566호 | M51: 진유림 | N51: yrj@kumoh.ac.kr
A52: 학생군사교육단 | B52: 152학생군사교육단 | C52: 0 | G52: 미정 | H52: 0 | I52: 0 | J52: 0 | K52: 0 | L52: 학생군사교육단 | M52: 백승환 | N52: amatus@kumoh.ac.kr
A53: 교내 소계 | C53: =SUM(C11:C52) -> 265 | D53: =SUM(D11:D52) -> 14 | E53: =SUM(E11:E52) -> 34 | F53: =SUM(F11:F52) -> 6 | H53: =SUM(H11:H52) -> 101972000 | I53: =SUM(I11:I52) -> 25493000 | J53: 6734000 | K53: 24761200
C54: 50 | H54: 11150
A55: 산학협력단 | B55: 산학협력단 | C55: 48 | G55: 미정 | H55: =C55*$C$54*$H$54 -> 26760000 | I55: 0 | J55: 0 | K55: 0 | L55: 산학협력관 302호, 305호 | M55: 박은희 | N55: ppeh6521@kumoh.ac.kr
A56: 산학협력시설 | B56: 중소기업산학협력센터 | C56: 6 | G56: 미정 | H56: =C56*$C$54*$H$54 -> 3345000 | I56: 0 | J56: 0 | K56: 0 | L56: 산학협력관 203호 | M56: 유광희 | N56: sanhack@kumoh.ac.kr
B57: 그린에너지산업화지원센터 | C57: 6 | G57: 미정 | H57: 3345000 | I57: 0 | J57: 0 | K57: 0 | L57: 산학협력관 610호 | M57: 구연정 | N57: b00543@kumoh.ac.kr
B58: 강소특구육성사업단 | C58: 6 | G58: 미정 | H58: 3345000 | I58: 0 | J58: 0 | K58: 0 | L58: 공동실험실습관 201호 | M58: 성상아 | N58: ssasera@kumoh.ac.kr
B59: 창의지식재산센터 | C59: 6 | G59: 미정 | H59: 3345000 | I59: 0 | J59: 0 | K59: 0 | L59: 산학협력관 206호 | M59: 김아름 | N59: arkim@kumoh.ac.kr
B60: 창업원(창업보육센터) | C60: 6 | G60: 미정 | H60: 3345000 | I60: 0 | J60: 0 | K60: 0 | L60: 벤처창업관 313호 | M60: 김소연 | N60: kimsy@kumoh.ac.kr
B61: 산학교육원 | C61: 6 | G61: 미정 | H61: 3345000 | I61: 0 | J61: 0 | K61: 0 | L61: 산학협력관 501호 | M61: 김소연 | N61: ksykit@kumoh.ac.kr
B62: 사업운영본부 | C62: 6 | G62: 미정 | H62: 3345000 | I62: 0 | J62: 0 | K62: 0 | L62: 산학협력관 505호 | M62: 이경복 | N62: lkb0114@kumoh.ac.kr
A63: 생활협동조합 | B63: 생활협동조합 | C63: 30 | G63: 미정 | H63: 16725000 | I63: 0 | J63: 0 | K63: 0 | L63: 학생회관 | M63: 김민지 | N63: mjee1125@kumoh.ac.kr
A64: 방학중교외집중근로 | C64: 350 | G64: 미정 | H64: 195125000 | I64: 0 | J64: 0 | K64: 0
A65: 교외 소계 | C65: =SUM(C55:C64) -> 470 | D65: =SUM(D55:D63) -> 0 | E65: =SUM(E55:E63) -> 0 | F65: =SUM(F55:F63) -> 0 | H65: =SUM(H55:H64) -> 262025000 | I65: =SUM(I55:I63) -> 0 | J65: =SUM(J55:J63) -> 0 | K65: =SUM(K55:K63) -> 0
A66: 총 계 | C66: =C53+C65 -> 735 | D66: =D53+D65 -> 14 | E66: =E53+E65 -> 34 | F66: =F53+F65 -> 6 | H66: =H53+H65 -> 363997000 | I66: =I53+I65 -> 25493000 | J66: =J53+J65 -> 6734000 | K66: =K53+K65 -> 24761200
J67: 총계 | K67: =SUM(H66:K66) -> 420985200

Sheet 계산 (hidden)
B2: 국고 | F2: 대학회계
B3: 학기중 | C3: 교내 | D3: =#REF! ->  | E3: =D3+D4 ->  | F3: 학기중 | G3: 대응 | H3: =#REF! ->  | I3: =H3+H4 -> 
C4: 교외 | D4: =#REF! ->  | G4: 대학근로 | H4: =#REF!+#REF! -> 
B5: 방학중 | C5: 교내 | D5: ='2023-1 방학중 계획'!H53 -> 101972000 | E5: =D5+D6 -> 363997000 | F5: 방학중 | G5: 대응 | H5: ='2023-1 방학중 계획'!I53 -> 25493000 | I5: =H5+H6 -> 56988200
C6: 교외 | D6: ='2023-1 방학중 계획'!H65 -> 262025000 | G6: 대학근로 | H6: ='2023-1 방학중 계획'!J53+'2023-1 방학중 계획'!K53 -> 31495200
B7: 연간예산 | C7: 교내 | D7: =(D3+D5)*2 ->  | E7: =(E3+E5)*2 ->  | F7: 연간예산 | G7: 대응 | H7: =(H3+H5)*2 ->  | I7: =(I3+I5)*2 -> 
C8: 교외 | D8: =(D4+D6)*2 ->  | G8: 대학근로 | H8: =(H4+H6)*2 -> 
B11: 2학기 외국인 유학생 지원 (일 8시간) | D11: 국고 | E11: 4802304
D12: 대응 | E12: 1200576
